fUSD/lending_fUSD_20250923
["ID","MTS","AMOUNT","RATE_DAILY","PERIOD"]
[387206647,1758644019362,177.796045,0.00018475,2]
[387206648,1758644019730,506.878826,0.00017999,2]
[387206649,1758644019760,376.344798,0.00017999,2]
[387206650,1758644020163,883.223624,0.00017997,2]
[387206651,1758644020567,883.223624,0.00017996,2]
[387206652,1758644021070,883.223624,0.00017995,2]
[387206653,1758644021666,883.223624,0.00017995,2]
[387206654,1758644021718,165.092595,0.00018475,2]
[387206655,1758644022127,883.223624,0.00017994,2]
[387206656,1758644022544,883.223624,0.00017989,2]
[387206657,1758644023716,501.836386,0.00018475,2]
[387206658,1758644023745,165.092595,0.00017996,2]
[387206659,1758644023984,165.092595,0.00017994,2]
[387206660,1758644024079,501.836386,0.00018233,2]
[387206661,1758644024126,243.96204263,0.00017988,2]
[387206662,1758644024153,639.26158137,0.00017988,2]
[387206663,1758644024322,501.836386,0.00017999,2]
[387206664,1758644024365,883.223624,0.00017983,2]
[387206665,1758644024550,501.836386,0.00017997,2]
[387206666,1758644025739,501.836386,0.00017996,2]
[387206667,1758644026243,501.836386,0.00017995,2]
[387206668,1758644026660,669.095167,0.00018475,2]
[387206669,1758644026782,501.836386,0.00017995,2]
[387206670,1758644027072,669.095167,0.00018233,2]
[387206671,1758644027256,-160.89782321,0.00018729,2]
[387206672,1758644027876,669.095167,0.00017999,2]
[387206673,1758644027940,501.836386,0.00017994,2]
[387206674,1758644028126,669.095167,0.00017997,2]
[387206675,1758644028231,501.836386,0.00017989,2]
[387206676,1758644028620,669.095167,0.00017996,2]
[387206677,1758644029130,669.095167,0.00017995,2]
[387206678,1758644029353,501.836386,0.00017988,2]
[387206679,1758644029754,501.836386,0.00017983,2]
[387206680,1758644030284,669.095167,0.00017995,2]
[387206681,1758644030721,669.095167,0.00017994,2]
[387206682,1758644030873,-1.15491979,0.00018729,2]
[387206683,1758644030901,-168.98149607,0.00018729,2]
[387206684,1758644031281,669.095167,0.00017989,2]
[387206685,1758644031713,669.095167,0.00017988,2]
[387206686,1758644032162,669.095167,0.00017983,2]
[387206687,1758644103625,152.09500108,0.000185,2]
[387206688,1758644163533,165.12,0.00016712,2]
[387206689,1758644224637,-170.13641586,0.00018726,2]
[387206690,1758644224665,-500.0,0.00018726,2]
[387206691,1758644224692,-279.86358414,0.00018726,2]
[387206692,1758644340702,-159.0,0.00018725,2]
[387206693,1758644340729,-500.0,0.00018725,2]
[387206694,1758644340755,-500.0,0.00018725,2]
[387206695,1758644340781,-548.12277427,0.00018725,2]
[387206696,1758644340804,-745.0,0.00018726,2]
[387206697,1758644341432,147.87722573,0.00018726,2]
[387206702,1758644518933,-160.89782321,0.00018711,2]
[387206703,1758644518958,-179.22635049,0.00018727,2]
[387206704,1758644720892,160.0,9e-05,2]
[387206705,1758644720916,2749.46877292,9e-05,2]
[387206706,1758644725872,6026.56564388,0.000175,2]
[387206708,1758644758115,-26071.93177832,0.0001995,15]
[387206709,1758644790446,175.65,0.00010793,2]
[387206716,1758644896113,2248.02810369,0.0001439,2]
[387206717,1758644912110,1171.8443407,0.00018,2]
[387206719,1758644918084,2696.92991646,0.0001,2]
[387206720,1758644920692,1204.29384902,0.0001421,7]
[387206721,1758644921196,500.10881833,0.000154,2]
[387206722,1758644929237,7640.71364835,0.00015,2]
[387206723,1758644929264,44644.78786383,0.00015,2]
[387206730,1758645031495,-181.080659,0.00019329,2]
[387206732,1758645031507,-213.17461696,0.00019427,3]
[387206734,1758645031554,-1242.05655228,0.00019427,3]
[387206735,1758645031566,-250.0,0.00019451,2]
[387206736,1758645031576,-623.72,0.00019461,2]
[387206737,1758645031587,-500.0,0.000195,5]
[387206738,1758645031598,-500.0,0.000196,7]
[387206739,1758645031608,-354.92344772,0.00019699,2]
[387206740,1758645031622,-845.07655228,0.00019699,2]
[387206741,1758645031631,-1100.0,0.000197,7]
[387206742,1758645031640,-4123.71,0.000197,2]
[387206743,1758645031649,-300.0,0.00019799,2]
[387206744,1758645031659,-266.0,0.00019799,2]
[387206745,1758645031668,-250.0,0.00019799,2]
[387206746,1758645031679,-1600.0,0.000198,7]
[387206747,1758645031690,-212.68398983,0.000199,2]
[387206748,1758645031700,-2200.0,0.000199,7]
[387206749,1758645031709,-992.92740722,0.000199,2]
[387206750,1758645031722,-312.11519657,0.000199,2]
[387206751,1758645031732,-172.01364159,0.00019949,2]
[387206752,1758645031741,-19147.83296251,0.0001995,15]
[387206753,1758645031753,-6366.12725098,0.0001995,15]
[387206754,1758645031788,-12682.98398077,0.0001995,15]
[387206755,1758645031809,-2724.64720407,0.0001995,15]
[387206756,1758645031820,-6950.65098903,0.0001995,15]
[387206757,1758645031832,-501.46850775,0.0001995,15]
[387206758,1758645031843,-662.67645278,0.0001995,15]
[387206759,1758645031868,-2805.70906817,0.0001995,15]
[387206760,1758645031878,-500.0,0.00019973,2]
[387206761,1758645031887,-500.0,0.00019973,2]
[387206762,1758645031896,-243.18309112,0.00019973,2]
[387206763,1758645031906,-431.89511562,0.00019973,2]
[387206764,1758645031915,-157.10197629,0.00019973,2]
[387206765,1758645031924,-500.0,0.00019973,2]
[387206766,1758645031934,-238.78142402,0.00019973,2]
[387206767,1758645031943,-500.0,0.00019973,2]
[387206768,1758645031952,-507.95810235,0.00019973,2]
[387206769,1758645031962,-500.0,0.00019973,2]
[387206770,1758645031971,-151.0,0.00019997,2]
[387206771,1758645031980,-300.0,0.00019999,2]
[387206772,1758645031989,-34.38609902,0.00019999,2]
[387206773,1758645032001,-631.61390098,0.00019999,2]
[387206774,1758645032010,-223.60845238,0.00019999,2]
[387206775,1758645032021,-1522.17340438,0.00019999,2]
[387206776,1758645032039,-1119.18127191,0.00019999,2]
[387206777,1758645032067,-1520.20335628,0.00019999,2]
[387206779,1758645032076,-8279.50207446,0.0002,2]
[387206781,1758645032086,-4000.0,0.0002,4]
[387206783,1758645032096,-1000.0,0.0002,2]
[387206785,1758645032105,-130422.06300937,0.0002,2]
[387206787,1758645032117,-25030.8837965,0.0002,2]
[387206790,1758645032140,-1206.62803928,0.0002,2]
[387206793,1758645032151,-8345.6464138,0.0002,2]
[387206795,1758645032167,-2500.6374227,0.0002,2]
[387206797,1758645032178,-966.09033492,0.0002,2]
[387206800,1758645032190,-691.40426648,0.0002,2]
[387206916,1758645037923,-1664.42438169,0.000199,2]
[387206918,1758645037932,-485.87006166,0.00019998,2]
[387206920,1758645037954,-162.04977666,0.00019998,2]
[387206922,1758645037963,-2931.95022334,0.0002,2]
[387206924,1758645037975,-690.36144826,0.0002,2]
[387207037,1758645039733,-151.0,0.00019997,2]
[387207038,1758645039742,-4466.2,0.0002,2]
[387207039,1758645039762,-17909.785326,0.0002,2]
[387207040,1758645039774,-619.09142122,0.0002,2]
[387207041,1758645039785,-1766.70034299,0.0002,2]
[387207042,1758645039986,-237587.89871767,0.0002,2]
[387207043,1758645039995,-1989811.90904745,0.0002,2]
[387207233,1758645045762,-610.31059844,0.0002,2]
[387207234,1758645045773,-9495.66789441,0.0002,2]
[387207235,1758645045974,-1141.21494543,0.0002,2]
[387207236,1758645046027,-3420.76179998,0.0002,2]
[387207242,1758645209310,252.43,0.00021945,30]
[387207244,1758645334414,20000.0,0.0003,120]
[387207245,1758646016854,-26071.93177832,0.000189,2]
[387207246,1758646136541,150.0,0.00018762,7]
[387207247,1758646184000,-250.01125298,0.00018899,2]
[387207249,1758646231827,-225.0,0.000187,2]
[387207250,1758646231837,-200.0,0.00018885,2]
[387207251,1758646231847,-203.53263385,0.00018899,2]
[387207252,1758646231856,-573.93854953,0.00018899,2]
[387207253,1758646231866,-300.0,0.00018899,2]
[387207254,1758646231875,-73959.55822168,0.000189,2]
[387207255,1758646231884,-469.15,0.00019013,2]
[387207256,1758646231894,-250.0,0.00019045,2]
[387207257,1758646231903,-430.63,0.00019102,2]
[387207258,1758646231913,-439.42,0.00019146,2]
[387207259,1758646231922,-7025.33,0.00019171,2]
[387207260,1758646231931,-8799.79,0.00019215,2]
[387207261,1758646231945,-4195.31,0.00019249,2]
[387207262,1758646231956,-474.15,0.00019381,2]
[387207263,1758646231965,-1000.0,0.000194,2]
[387207264,1758646231974,-2978.58,0.000195,3]
[387207265,1758646231983,-1000.0,0.00019726,2]
[387207266,1758646231993,-367.95,0.00019756,2]
[387207267,1758646232003,-25000.0,0.0001978,2]
[387207268,1758646232013,-1594.004,0.0001978,2]
[387207269,1758646232023,-800.0,0.000198,7]
[387207270,1758646232032,-221.0,0.0001988,2]
[387207271,1758646232041,-584.01403422,0.000199,2]
[387207272,1758646232051,-5326.4395,0.000199,2]
[387207273,1758646232060,-291.82490703,0.000199,2]
[387207274,1758646232069,-6209.81451853,0.000199,2]
[387207275,1758646232078,-1700.0,0.000199,7]
[387207276,1758646232088,-2000.0,0.000199,2]
[387207277,1758646232097,-642.27123774,0.000199,2]
[387207278,1758646232106,-303.09,0.00019906,2]
[387207279,1758646232116,-882.76831988,0.00019967,2]
[387207280,1758646232125,-500.0,0.00019973,2]
[387207281,1758646232134,-500.0,0.00019973,2]
[387207282,1758646232143,-500.0,0.00019973,2]
[387207283,1758646232152,-500.0,0.00019973,2]
[387207284,1758646232161,-278.72102096,0.00019973,2]
[387207285,1758646232170,-151.0,0.00019988,2]
[387207286,1758646232179,-151.0,0.00019988,2]
[387207287,1758646232189,-151.0,0.00019988,2]
[387207288,1758646232200,-151.0,0.00019988,2]
[387207290,1758646232209,-151.0,0.00019988,2]
[387207292,1758646232218,-151.0,0.00019988,2]
[387207294,1758646232228,-524.63999574,0.00019988,2]
[387207296,1758646232237,-151.0,0.00019988,2]
[387207297,1758646232247,-151.0,0.00019988,2]
[387207298,1758646232257,-151.0,0.00019988,2]
[387207300,1758646232266,-151.0,0.00019988,2]
[387207302,1758646232276,-151.0,0.00019988,2]
[387207304,1758646232286,-151.0,0.00019988,2]
[387207307,1758646232295,-151.0,0.00019988,2]
[387207310,1758646232305,-151.0,0.00019988,2]
[387207313,1758646232315,-151.0,0.00019988,2]
[387207315,1758646232324,-151.0,0.00019988,2]
[387207317,1758646232334,-151.0,0.00019988,2]
[387207320,1758646232343,-151.0,0.00019988,2]
[387207323,1758646232353,-151.0,0.00019988,2]
[387207326,1758646232362,-300.47221972,0.00019988,2]
[387207329,1758646232371,-151.0,0.00019988,2]
[387207333,1758646232381,-151.0,0.00019988,2]
[387207336,1758646232391,-155.2589367,0.00019988,2]
[387207338,1758646232400,-151.0,0.00019988,2]
[387207341,1758646232409,-151.0,0.00019988,2]
[387207344,1758646232420,-151.0,0.00019988,2]
[387207347,1758646232429,-151.0,0.00019988,2]
[387207351,1758646232439,-151.0,0.00019988,2]
[387207354,1758646232448,-151.0,0.00019988,2]
[387207357,1758646232457,-151.0,0.00019988,2]
[387207359,1758646232467,-151.0,0.00019988,2]
[387207363,1758646232477,-151.0,0.00019988,2]
[387207366,1758646232486,-151.0,0.00019988,2]
[387207369,1758646232496,-200.0,0.00019988,2]
[387207372,1758646232505,-200.0,0.00019988,2]
[387207375,1758646232514,-17435.9018922,0.00019988,2]
[387207378,1758646232524,-4847.95,0.0001999,2]
[387207380,1758646232533,-3483.5721355,0.0001999,2]
[387207383,1758646232546,-1364.3778645,0.0001999,2]
[387207385,1758646232555,-152.39,0.0001999,2]
[387207387,1758646232565,-151.0,0.00019997,2]
[387207389,1758646232574,-7965.74395534,0.00019997,2]
[387207391,1758646232583,-36831.76071859,0.0002,2]
[387207393,1758646232595,-123793.66790688,0.0002,2]
[387207395,1758646232606,-132994.88674289,0.0002,2]
[387207399,1758646232634,-3950.81216826,0.0002,2]
[387207404,1758646232674,-633.49324892,0.0002,2]
[387207415,1758646232764,-23010.79713,0.0002,2]
[387207423,1758646232840,-327.7799999,0.0002,2]
[387207646,1758646237715,-235.08452959,0.0001999,2]
[387207647,1758646238018,-169.72,0.0001999,2]
[387207648,1758646238028,-169.72,0.0001999,2]
[387207649,1758646238038,-169.72,0.0001999,2]
[387207650,1758646238047,-319.19404471,0.0002,2]
[387207699,1758646239643,-3558.02884725,0.0002,2]
[387207701,1758646239698,-4875.17502003,0.0002,2]
[387207702,1758646239769,-1160.0,0.0002,2]
[387207703,1758646239865,-15774.24078908,0.0002,2]
[387207714,1758646242991,-217783.44506782,0.0002,2]
[387207716,1758646246002,-383.5086327,0.0002,2]
[387207717,1758646246053,-96833.9707244,0.0002,2]
[387207718,1758646246064,-21722.99744401,0.0002,2]
[387207719,1758646246075,-1692.2736255,0.0002,2]
[387207720,1758646246087,-2280.47610914,0.0002,2]
[387207721,1758646246110,-626.8265502,0.0002,2]
[387207726,1758646429557,500.0,0.00013699,2]
[387207727,1758646451864,-150.0,0.0002,20]
[387207728,1758646512055,231.39,0.00021945,30]
[387207731,1758646653094,150.0,0.00019,5]
[387207733,1758646748449,510.95249259,0.00019,5]
[387207735,1758646757853,220.0,0.000177,2]
[387207736,1758646993878,-456.67068438,0.00018673,2]
[387207737,1758646993902,-102.32931562,0.00018673,2]
[387207738,1758647289641,217.0,0.000167,2]
[387207739,1758647290040,12.0,0.0001788,2]
[387207740,1758647290062,201.0,0.0001788,2]
[387207746,1758647431919,212.1,0.00021945,30]
[387207747,1758647431992,-50.00068438,0.00018673,2]
[387207748,1758647432003,-179.41879141,0.00018673,2]
[387207749,1758647432013,-165.84,0.00018967,2]
[387207750,1758647432023,-250.0,0.00018976,2]
[387207751,1758647432033,-136.70116675,0.00019038,2]
[387207752,1758647432059,-97.86883325,0.00019038,2]
[387207753,1758647432068,-150.0,0.00019038,7]
[387207754,1758647432078,-539.02,0.00019038,2]
[387207755,1758647432087,-209.0,0.0001907,2]
[387207756,1758647432097,-1000.0,0.00019452,2]
[387207757,1758647432107,-1200.0,0.00019597,2]
[387207758,1758647432116,-300.0,0.00019598,2]
[387207759,1758647432126,-300.0,0.00019598,2]
[387207760,1758647432135,-300.0,0.00019598,2]
[387207761,1758647432145,-614.76338236,0.00019599,2]
[387207762,1758647432154,-175.81418448,0.00019599,2]
[387207764,1758647432164,-160.90668892,0.00019599,2]
[387207766,1758647432174,-500.0,0.00019599,2]
[387207767,1758647432184,-500.0,0.00019599,2]
[387207769,1758647432194,-1162.62174284,0.000196,2]
[387207771,1758647432204,-1162.62174284,0.000196,2]
[387207773,1758647432213,-1695.162,0.000196,2]
[387207774,1758647432223,-77108.49259813,0.000197,2]
[387207775,1758647432237,-800.0,0.000198,7]
[387207776,1758647432247,-857.86097494,0.00019878,2]
[387207777,1758647432257,-200.0,0.00019888,2]
[387207778,1758647432267,-151.0,0.00019897,2]
[387207779,1758647432278,-6840.53102666,0.00019899,2]
[387207780,1758647432295,-262.6424163,0.00019899,2]
[387207781,1758647432305,-85809.76078383,0.000199,2]
[387207782,1758647432317,-9728.20017487,0.000199,2]
[387207783,1758647432330,-18121.13347714,0.000199,2]
[387207784,1758647432342,-9290.87178556,0.000199,2]
[387207785,1758647432359,-2108.01942602,0.000199,2]
[387207786,1758647432371,-760.19904236,0.000199,2]
[387207787,1758647432392,-634.15542941,0.000199,2]
[387207788,1758647432404,-5558.98220952,0.000199,2]
[387207789,1758647432415,-2905.0898205,0.000199,2]
[387207790,1758647432443,-10661.88026352,0.000199,2]
[387207791,1758647432455,-1608.16788853,0.000199,2]
[387207792,1758647432472,-1459.65947331,0.000199,2]
[387207794,1758647437777,-281.55,0.00019898,2]
[387207795,1758647438088,-218.45,0.00019898,2]
[387207796,1758647438098,-199.87931157,0.00019898,2]
[387207797,1758647438107,-155.25592651,0.00019898,2]
[387207798,1758647438117,-399.21476192,0.000199,2]
[387207799,1758647438128,-1260.0,0.000199,2]
[387207800,1758647438139,-1118.10003,0.000199,2]
[387207881,1758647440135,-48529.52805691,0.000199,2]
[387207882,1758647440144,-613.29788646,0.000199,2]
[387207883,1758647440154,-1600.0,0.000199,7]
[387207884,1758647440164,-175.62,0.00019945,2]
[387207885,1758647440173,-539.02,0.0001999,2]
[387207886,1758647440182,-151.0,0.00019997,2]
[387207887,1758647440191,-240.4683891,0.00019997,2]
[387207888,1758647440201,-18210.3541674,0.00019998,2]
[387207889,1758647440211,-7606.91257,0.00019999,2]
[387207890,1758647440221,-18699.3266951,0.00019999,2]
[387207891,1758647440230,-19408.315063,0.00019999,2]
[387207892,1758647440240,-33427.8923324,0.00019999,2]
[387207893,1758647440249,-2596.9320015,0.00019999,2]
[387207894,1758647440259,-400.0,0.0002,2]
[387207895,1758647440268,-4139.75103723,0.0002,2]
[387207896,1758647440277,-132985.99373975,0.0002,2]
[387207897,1758647440290,-263769.32917973,0.0002,2]
[387207898,1758647440299,-14163.3425813,0.0002,20]
[387207899,1758647440309,-183.609,0.0002,2]
[387207900,1758647440318,-500.0,0.0002,2]
[387207901,1758647440328,-500.0,0.0002,2]
[387207902,1758647440338,-213.01810391,0.0002,2]
[387207903,1758647440347,-1000.0,0.0002,2]
[387207905,1758647440358,-500.0,0.0002,2]
[387207907,1758647440367,-192.90879917,0.0002,2]
[387207908,1758647440377,-1000.0,0.0002,2]
[387207909,1758647440388,-228376.61745488,0.0002,2]
[387207910,1758647440397,-1000.0,0.0002,2]
[387207911,1758647440406,-151.0,0.0002,2]
[387207912,1758647440415,-151.0,0.0002,2]
[387207913,1758647440424,-154.311261,0.0002,2]
[387207914,1758647440433,-151.0,0.0002,2]
[387207915,1758647440442,-151.0,0.0002,2]
[387207916,1758647440451,-151.0,0.0002,2]
[387207917,1758647440460,-151.0,0.0002,2]
[387207919,1758647440469,-151.0,0.0002,2]
[387207920,1758647440479,-151.0,0.0002,2]
[387207922,1758647440488,-150.0,0.0002,2]
[387207924,1758647440497,-150.0,0.0002,2]
[387207926,1758647440506,-150.0,0.0002,2]
[387207928,1758647440516,-150.0,0.0002,2]
[387207930,1758647440525,-500.0,0.0002,2]
[387207932,1758647440534,-150.0,0.0002,2]
[387207934,1758647440544,-150.0,0.0002,2]
[387207936,1758647440553,-150.0,0.0002,2]
[387207938,1758647440562,-150.33840571,0.0002,2]
[387207940,1758647440572,-150.0,0.0002,2]
[387207942,1758647440581,-150.0,0.0002,2]
[387207944,1758647440591,-150.0,0.0002,2]
[387207946,1758647440600,-150.0,0.0002,2]
[387207947,1758647440609,-150.0,0.0002,2]
[387207949,1758647440618,-150.0,0.0002,2]
[387207951,1758647440628,-150.0,0.0002,2]
[387207953,1758647440637,-150.0,0.0002,2]
[387207955,1758647440647,-150.0,0.0002,2]
[387207957,1758647440656,-228.261415,0.0002,2]
[387207959,1758647440665,-153.40552,0.0002,2]
[387207961,1758647440674,-151.0,0.0002,2]
[387207963,1758647440684,-151.0,0.0002,2]
[387207965,1758647440694,-151.0,0.0002,2]
[387207967,1758647440703,-151.0,0.0002,2]
[387207968,1758647440712,-153.265969,0.0002,2]
[387207969,1758647440720,-151.0,0.0002,2]
[387207970,1758647440730,-152.947688,0.0002,2]
[387207971,1758647440739,-151.0,0.0002,2]
[387207972,1758647440957,-151.0,0.0002,2]
[387207973,1758647440968,-151.0,0.0002,2]
[387207974,1758647440980,-151.0,0.0002,2]
[387207975,1758647440992,-152.585346,0.0002,2]
[387207976,1758647441002,-151.0,0.0002,2]
[387207977,1758647441012,-151.0,0.0002,2]
[387207978,1758647441023,-160.29932,0.0002,2]
[387207979,1758647441032,-151.0,0.0002,2]
[387207980,1758647441042,-151.0,0.0002,2]
[387207981,1758647441052,-155.623483,0.0002,2]
[387207982,1758647441062,-151.0,0.0002,2]
[387207983,1758647441071,-151.0,0.0002,2]
[387207984,1758647441080,-151.0,0.0002,2]
[387207985,1758647441089,-158.148109,0.0002,2]
[387207986,1758647441100,-151.0,0.0002,2]
[387207987,1758647441110,-164.656505,0.0002,2]
[387207988,1758647441119,-151.0,0.0002,2]
[387207989,1758647441128,-151.0,0.0002,2]
[387207990,1758647441138,-151.0,0.0002,2]
[387207991,1758647441147,-151.0,0.0002,2]
[387207992,1758647441414,-151.0,0.0002,2]
[387207993,1758647441426,-151.0,0.0002,2]
[387207994,1758647441436,-151.0,0.0002,2]
[387207995,1758647441445,-203.859504,0.0002,2]
[387207996,1758647441454,-151.0,0.0002,2]
[387207997,1758647441463,-151.0,0.0002,2]
[387207998,1758647441472,-151.0,0.0002,2]
[387207999,1758647441481,-151.0,0.0002,2]
[387208000,1758647441491,-151.0,0.0002,2]
[387208001,1758647441500,-290.758337,0.0002,2]
[387208002,1758647441509,-290.758337,0.0002,2]
[387208003,1758647441518,-290.758337,0.0002,2]
[387208004,1758647441527,-151.0,0.0002,2]
[387208005,1758647441536,-151.0,0.0002,2]
[387208006,1758647441545,-290.758337,0.0002,2]
[387208007,1758647441555,-151.0,0.0002,2]
[387208008,1758647441564,-151.0,0.0002,2]
[387208009,1758647441573,-151.0,0.0002,2]
[387208010,1758647441582,-151.0,0.0002,2]
[387208011,1758647441592,-290.758337,0.0002,2]
[387208012,1758647441601,-151.0,0.0002,2]
[387208013,1758647441610,-151.0,0.0002,2]
[387208014,1758647441620,-290.758337,0.0002,2]
[387208015,1758647441629,-151.0,0.0002,2]
[387208016,1758647441639,-151.0,0.0002,2]
[387208017,1758647441649,-151.0,0.0002,2]
[387208018,1758647441658,-290.758337,0.0002,2]
[387208019,1758647441667,-151.0,0.0002,2]
[387208020,1758647441677,-290.758337,0.0002,2]
[387208021,1758647441686,-151.0,0.0002,2]
[387208022,1758647441696,-151.0,0.0002,2]
[387208023,1758647441705,-151.0,0.0002,2]
[387208024,1758647441714,-151.0,0.0002,2]
[387208025,1758647441724,-151.0,0.0002,2]
[387208026,1758647441734,-151.0,0.0002,2]
[387208027,1758647441744,-151.0,0.0002,2]
[387208028,1758647441753,-151.0,0.0002,2]
[387208029,1758647441763,-151.0,0.0002,2]
[387208030,1758647441774,-151.0,0.0002,2]
[387208031,1758647441783,-151.0,0.0002,2]
[387208032,1758647441793,-151.0,0.0002,2]
[387208033,1758647441803,-151.0,0.0002,2]
[387208034,1758647441813,-151.0,0.0002,2]
[387208035,1758647441823,-151.0,0.0002,2]
[387208036,1758647441832,-151.0,0.0002,2]
[387208037,1758647441841,-151.0,0.0002,2]
[387208038,1758647441851,-151.0,0.0002,2]
[387208039,1758647441860,-151.0,0.0002,2]
[387208040,1758647441871,-151.0,0.0002,2]
[387208041,1758647441880,-151.0,0.0002,2]
[387208042,1758647441908,-154.766756,0.0002,2]
[387208043,1758647441917,-151.0,0.0002,2]
[387208044,1758647441926,-151.0,0.0002,2]
[387208045,1758647441935,-500.0,0.0002,2]
[387208046,1758647441944,-500.0,0.0002,2]
[387208047,1758647441953,-155.516862,0.0002,2]
[387208048,1758647441962,-150.0,0.0002,2]
[387208049,1758647441972,-150.0,0.0002,2]
[387208050,1758647441981,-379.0,0.0002,2]
[387208051,1758647441990,-500.0,0.0002,2]
[387208052,1758647441999,-500.0,0.0002,2]
[387208053,1758647442009,-150.0,0.0002,2]
[387208054,1758647442019,-500.0,0.0002,2]
[387208055,1758647442030,-151.0,0.0002,2]
[387208056,1758647442040,-151.0,0.0002,2]
[387208057,1758647442049,-153.810745,0.0002,2]
[387208058,1758647442059,-150.0,0.0002,2]
[387208059,1758647442068,-151.0,0.0002,2]
[387208060,1758647442078,-151.0,0.0002,2]
[387208061,1758647442088,-151.0,0.0002,2]
[387208062,1758647442098,-337.324498,0.0002,2]
[387208063,1758647442107,-337.324498,0.0002,2]
[387208064,1758647442116,-337.324498,0.0002,2]
[387208065,1758647442125,-337.324498,0.0002,2]
[387208066,1758647442135,-337.324498,0.0002,2]
[387208067,1758647442144,-337.324498,0.0002,2]
[387208068,1758647442153,-337.324498,0.0002,2]
[387208069,1758647442162,-337.324498,0.0002,2]
[387208070,1758647442172,-151.0,0.0002,2]
[387208071,1758647442181,-151.0,0.0002,2]
[387208072,1758647442193,-151.0,0.0002,2]
[387208073,1758647442204,-151.0,0.0002,2]
[387208074,1758647442214,-151.0,0.0002,2]
[387208075,1758647442225,-151.0,0.0002,2]
[387208076,1758647442236,-151.0,0.0002,2]
[387208077,1758647442245,-151.0,0.0002,2]
[387208078,1758647442255,-154.576651,0.0002,2]
[387208079,1758647442266,-151.0,0.0002,2]
[387208080,1758647442275,-151.0,0.0002,2]
[387208081,1758647442289,-151.0,0.0002,2]
[387208082,1758647442299,-151.0,0.0002,2]
[387208083,1758647442310,-151.0,0.0002,2]
[387208084,1758647442319,-151.0,0.0002,2]
[387208085,1758647442329,-151.0,0.0002,2]
[387208086,1758647442339,-182.630017,0.0002,2]
[387208087,1758647442347,-348.938622,0.0002,2]
[387208088,1758647442358,-151.0,0.0002,2]
[387208089,1758647442368,-348.938622,0.0002,2]
[387208090,1758647442378,-151.0,0.0002,2]
[387208091,1758647442388,-151.0,0.0002,2]
[387208092,1758647442398,-348.938622,0.0002,2]
[387208093,1758647442407,-151.0,0.0002,2]
[387208094,1758647442418,-348.938622,0.0002,2]
[387208095,1758647442428,-348.938622,0.0002,2]
[387208096,1758647442441,-348.938622,0.0002,2]
[387208097,1758647442450,-348.938622,0.0002,2]
[387208098,1758647442460,-348.938622,0.0002,2]
[387208099,1758647442470,-153.469909,0.0002,2]
[387208100,1758647442481,-151.0,0.0002,2]
[387208101,1758647442491,-151.0,0.0002,2]
[387208102,1758647442500,-151.0,0.0002,2]